[Event "44th Chess Olympiad Open 2022"]
[Site "Chennai"]
[Date "2022.07.30"]
[Round "2.72"]
[White "Giasi, Viresh"]
[Black "Mbongeni, Mabuza"]
[Result "1-0"]
[WhiteElo "2006"]
[BlackElo "1669"]
[Annotator "NA"]
[PlyCount "85"]
[EventDate "2022.??.??"]
[TimeControl "60"]

1. e4 {[%emt 0:00:06]} e5 {[%emt 0:01:01]} 2. Nf3 {[%emt 0:00:22]} Nf6 {
[%emt 0:00:20]} 3. d3 {[%emt 0:00:13]} Nc6 {[%emt 0:00:11]} 4. c3 {[%emt 0:00:
00]} Be7 {[%emt 0:03:26]} 5. Be2 {[%emt 0:00:13]} O-O {[%emt 0:00:13]} 6. O-O {
[%emt 0:00:19]} d5 {[%emt 0:03:52]} 7. Qc2 {[%emt 0:01:18]} Bg4 {[%emt 0:03:45]
} 8. Bg5 {[%emt 0:07:22]} dxe4 {[%emt 0:07:06]} 9. dxe4 {[%emt 0:00:13]} Nd7 {
[%emt 0:00:09]} 10. Bxe7 {[%emt 0:01:09]} Qxe7 {[%emt 0:00:11]} 11. Nbd2 {
[%emt 0:00:51]} Rad8 {[%emt 0:03:14]} 12. Nc4 {[%emt 0:02:54]} Nb6 {[%emt 0:00:
00]} 13. Ne3 {[%emt 0:00:56]} Be6 {[%emt 0:00:10]} 14. b4 {[%emt 0:00:23]} f6 {
[%emt 0:01:11]} 15. a4 {[%emt 0:00:15]} a5 {[%emt 0:00:18]} 16. b5 {[%emt 0:00:
00]} Nb8 {[%emt 0:00:28]} 17. c4 {[%emt 0:00:42]} Nc8 {[%emt 0:08:09]} 18. c5 {
[%emt 0:04:31]} b6 {[%emt 0:02:02]} 19. c6 {[%emt 0:06:02]} Nd6 {[%emt 0:01:01]
} 20. Nd2 {[%emt 0:08:13]} f5 {[%emt 0:07:51]} 21. exf5 {[%emt 0:09:51]} Nxf5 {
[%emt 0:00:23]} 22. Nxf5 {[%emt 0:05:27]} Bxf5 {[%emt 0:00:10]} 23. Qb3+ {
[%emt 0:00:40]} Kh8 {[%emt 0:00:16]} 24. Nc4 {[%emt 0:00:41]} Rf6 {[%emt 0:00:
00]} 25. Rad1 {[%emt 0:02:37]} Rdf8 {[%emt 0:01:23]} 26. Ne3 {[%emt 0:00:27]}
Be4 {[%emt 0:02:33]} 27. f3 {[%emt 0:01:58]} Bg6 {[%emt 0:01:27]} 28. Nd5 {
[%emt 0:02:57]} Qc5+ {[%emt 0:01:12]} 29. Qe3 {[%emt 0:00:07]} Qxe3+ {[%emt 0:
00:00]} 30. Nxe3 {[%emt 0:00:02]} Nxc6 {[%emt 0:00:14]} 31. bxc6 {[%emt 0:00:
00]} Rxc6 {[%emt 0:00:07]} 32. Rd5 {[%emt 0:01:51]} Re6 {[%emt 0:14:08]} 33.
Rd7 {[%emt 0:01:25]} Be8 {[%emt 0:16:19]} 34. Rd8 {[%emt 0:00:33]} Ref6 {
[%emt 0:06:09]} 35. Ra1 {[%emt 0:04:13]} Bc6 {[%emt 0:00:30]} 36. Rxf8+ {
[%emt 0:00:58]} Rxf8 {[%emt 0:00:08]} 37. Bb5 {[%emt 0:00:25]} Bb7 {[%emt 0:00:
00]} 38. Rc1 {[%emt 0:00:27]} c6 {[%emt 0:01:34]} 39. Bd3 {[%emt 0:00:02]} Rd8
{[%emt 0:00:37]} 40. Be4 {[%emt 0:00:03]} g6 {[%emt 0:02:23]} 41. Nc4 {[%emt 0:
00:00]} b5 {[%emt 0:31:20]} 42. Nxa5 {[%emt 0:00:48]} Rb8 {[%emt 0:02:10]} 43.
Nxb7 {[%emt 0:01:49]} 1-0

[Event "44th Chess Olympiad Open 2022"]
[Site "Chennai"]
[Date "2022.07.30"]
[Round "2.72"]
[White "Kalidjo, Imaan"]
[Black "Sihlongonyane, Sikhanyiso"]
[Result "1-0"]
[WhiteElo "1819"]
[BlackElo "1658"]
[Annotator "NA"]
[PlyCount "57"]
[EventDate "2022.??.??"]
[TimeControl "60"]

1. d4 {[%emt 0:00:03]} Nf6 {[%emt 0:00:08]} 2. e3 {[%emt 0:00:19]} d5 {[%emt 0:
00:00]} 3. Bd3 {[%emt 0:01:04]} g6 {[%emt 0:00:29]} 4. Nd2 {[%emt 0:00:11]} Bg7
{[%emt 0:00:08]} 5. f4 {[%emt 0:00:34]} Bg4 {[%emt 0:01:46]} 6. Ngf3 {[%emt 0:
00:00]} Nbd7 {[%emt 0:00:15]} 7. h3 {[%emt 0:02:42]} Bxf3 {[%emt 0:00:03]} 8.
Qxf3 {[%emt 0:00:48]} e6 {[%emt 0:00:29]} 9. O-O {[%emt 0:02:35]} O-O {[%emt 0:
00:00]} 10. c3 {[%emt 0:07:33]} c5 {[%emt 0:01:32]} 11. a4 {[%emt 0:00:16]} a6
{[%emt 0:00:16]} 12. g4 {[%emt 0:05:13]} c4 {[%emt 0:06:17]} 13. Bc2 {[%emt 0:
00:00]} b5 {[%emt 0:00:22]} 14. axb5 {[%emt 0:05:16]} axb5 {[%emt 0:00:02]} 15.
Rxa8 {[%emt 0:00:39]} Qxa8 {[%emt 0:00:02]} 16. e4 {[%emt 0:02:39]} dxe4 {
[%emt 0:00:56]} 17. Nxe4 {[%emt 0:02:41]} Nxe4 {[%emt 0:00:11]} 18. Bxe4 {
[%emt 0:01:58]} Qa5 {[%emt 0:00:28]} 19. f5 {[%emt 0:10:55]} exf5 {[%emt 0:00:
00]} 20. gxf5 {[%emt 0:02:32]} Nf6 {[%emt 0:01:37]} 21. Bg5 {[%emt 0:05:06]}
Nxe4 {[%emt 0:01:12]} 22. Qxe4 {[%emt 0:00:03]} f6 {[%emt 0:26:00]} 23. Bf4 {
[%emt 0:04:06]} g5 {[%emt 0:06:59]} 24. Bd6 {[%emt 0:13:24]} Rf7 {[%emt 0:00:
00]} 25. h4 {[%emt 0:11:32]} gxh4 {[%emt 0:21:40]} 26. Qe8+ {[%emt 0:04:12]}
Bf8 {[%emt 0:00:28]} 27. Kh1 {[%emt 0:01:16]} Kh8 {[%emt 0:20:22]} 28. Qxf7 {
[%emt 0:00:53]} Qa8+ {[%emt 0:00:46]} 29. d5 {[%emt 0:00:19]} 1-0

[Event "44th Chess Olympiad Open 2022"]
[Site "Chennai"]
[Date "2022.07.30"]
[Round "2.72"]
[White "Hlophe, Smilo"]
[Black "Sanches, Casanova Romario"]
[Result "0-1"]
[WhiteElo "1731"]
[BlackElo "2066"]
[Annotator "NA RC"]
[PlyCount "48"]
[EventDate "2022.??.??"]
[TimeControl "60"]

1. d4 {[%emt 0:00:03]} Nf6 {[%emt 0:00:39]} 2. c4 {[%emt 0:00:06]} g6 {[%emt 0:
00:00]} 3. Nc3 {[%emt 0:00:08]} Bg7 {[%emt 0:00:04]} 4. e4 {[%emt 0:00:14]} d6
{[%emt 0:00:07]} 5. Bd3 {[%emt 0:00:07]} O-O {[%emt 0:00:15]} 6. Nge2 {[%emt 0:
00:00]} Nc6 {[%emt 0:00:41]} 7. f3 {[%emt 0:00:13]} a6 {[%emt 0:00:59]} 8. O-O
{[%emt 0:00:10]} e5 {[%emt 0:00:30]} 9. Be3 {[%emt 0:00:02]} Nh5 {[%emt 0:00:
00]} 10. Bb1 {[%emt 0:00:31]} Rb8 {[%emt 0:03:21]} 11. d5 {[%emt 0:00:11]} Ne7
{[%emt 0:00:18]} 12. b4 {[%emt 0:00:45]} f5 {[%emt 0:01:25]} 13. Bd3 {[%emt 0:
00:00]} f4 {[%emt 0:01:43]} 14. Bf2 {[%emt 0:00:07]} g5 {[%emt 0:00:31]} 15.
Qc2 {[%emt 0:00:23]} Ng6 {[%emt 0:01:44]} 16. c5 {[%emt 0:00:12]} g4 {[%emt 0:
00:00]} 17. fxg4 {[%emt 0:00:13]} Bxg4 {[%emt 0:00:20]} 18. Rab1 {[%emt 0:00:
00]} f3 {[%emt 0:06:06]} 19. gxf3 {[%emt 0:07:04]} Bxf3 {[%emt 0:00:37]} 20.
Ng3 {[%emt 0:00:15]} Nhf4 {[%emt 0:01:09]} 21. Rfe1 {[%emt 0:01:59]} Nh3+ {
[%emt 0:08:05]} 22. Kf1 {[%emt 0:00:10]} Bg2+ {[%emt 0:00:46]} 23. Kxg2 {
[%emt 0:00:12]} Rxf2+ {[%emt 0:00:09]} 24. Kxh3 {[%emt 0:03:14]} Nf4+ {[%emt 0:
00:00]} 0-1

[Event "44th Chess Olympiad Open 2022"]
[Site "Chennai"]
[Date "2022.07.30"]
[Round "2.73"]
[White "Al-Sulaiti, Ghanem"]
[Black "McCoy, Tom"]
[Result "1-0"]
[WhiteElo "2183"]
[BlackElo "1812"]
[Annotator "ChessBase"]
[PlyCount "57"]
[EventDate "2022.??.??"]
[TimeControl "60"]

1. e4 {[%emt 0:00:05]} d5 {[%emt 0:00:12]} 2. exd5 {[%emt 0:00:38]} Qxd5 {
[%emt 0:00:16]} 3. Nc3 {[%emt 0:00:21]} Qa5 {[%emt 0:00:09]} 4. Bc4 {[%emt 0:
00:00]} Nf6 {[%emt 0:00:52]} 5. d3 {[%emt 0:00:46]} c6 {[%emt 0:03:26]} 6. Bd2
{[%emt 0:00:10]} Qc7 {[%emt 0:00:54]} 7. Qe2 {[%emt 0:00:29]} b5 {[%emt 0:00:
00]} 8. Bb3 {[%emt 0:00:24]} Bb7 {[%emt 0:00:49]} 9. Nf3 {[%emt 0:01:15]} Nbd7
{[%emt 0:02:16]} 10. d4 {[%emt 0:33:52]} b4 {[%emt 0:08:39]} 11. Ng5 {[%emt 0:
00:00]} e6 {[%emt 0:17:07]} 12. Nxf7 {[%emt 0:13:16]} bxc3 {[%emt 0:03:06]} 13.
Qxe6+ {[%emt 0:00:16]} Be7 {[%emt 0:00:26]} 14. bxc3 {[%emt 0:05:06]} Rf8 {
[%emt 0:01:50]} 15. O-O {[%emt 0:00:57]} Nd5 {[%emt 0:03:18]} 16. Ng5 {[%emt 0:
00:00]} Qd6 {[%emt 0:02:11]} 17. Rfe1 {[%emt 0:08:04]} Qxe6 {[%emt 0:12:24]}
18. Nxe6 {[%emt 0:00:18]} Rf7 {[%emt 0:02:42]} 19. c4 {[%emt 0:00:37]} N5f6 {
[%emt 0:01:48]} 20. Nc7+ {[%emt 0:02:13]} Kd8 {[%emt 0:02:37]} 21. Nxa8 {
[%emt 0:00:25]} Bxa8 {[%emt 0:00:13]} 22. c5 {[%emt 0:00:07]} Nd5 {[%emt 0:00:
00]} 23. Rab1 {[%emt 0:00:50]} N7f6 {[%emt 0:03:35]} 24. Bxd5 {[%emt 0:00:27]}
Nxd5 {[%emt 0:01:40]} 25. Rb8+ {[%emt 0:00:06]} Kc7 {[%emt 0:03:02]} 26. Rxa8 {
[%emt 0:00:08]} Kb7 {[%emt 0:00:24]} 27. Rh8 {[%emt 0:01:28]} g6 {[%emt 0:00:
00]} 28. Rb1+ {[%emt 0:00:14]} Kc7 {[%emt 0:01:28]} 29. Ra8 {[%emt 0:00:12]}
1-0

[Event "44th Chess Olympiad Open 2022"]
[Site "Chennai"]
[Date "2022.07.30"]
[Round "2.73"]
[White "Fancy, Stuart"]
[Black "Aziz, Husain"]
[Result "0-1"]
[WhiteElo "1984"]
[BlackElo "2380"]
[Annotator "TA"]
[PlyCount "58"]
[EventDate "2022.??.??"]
[TimeControl "60"]

{[%evp 9,58,-16,-9,-22,-10,-29,-22,-19,-10,-14,-9,-16,-13,-35,-35,-63,-45,-59,
-58,-66,-22,-43,-36,-56,-47,-57,-41,-64,-58,-97,-112,-216,-213,-229,-240,-244,
-231,-279,-275,-270,-281,-280,-279,-397,-407,-465,-445,-447,-445,-529,-527]} 1.
Nc3 {[%emt 0:00:02]} d5 {[%emt 0:00:20]} 2. d4 {[%emt 0:00:29]} Nf6 {[%emt 0:
00:00]} 3. Bg5 {[%emt 0:00:15][%cal Yc1g5,Yg5h4,Yh4g3]} c5 {[%emt 0:00:00]} 4.
e3 {[%emt 0:01:08]} Nc6 {[%emt 0:02:16]} 5. dxc5 {[%emt 0:01:45]} e6 {[%emt 0:
01:12]} 6. Nf3 {[%emt 0:00:39][%cal Ye3e4] D01: Veresov Opening.} Bxc5 {
[%emt 0:00:19]} 7. Bd3 {[%emt 0:01:57]} h6 {[%emt 0:00:39]} 8. Bh4 {[%emt 0:00:
00] The position is equal.} Be7 {[%emt 0:00:09]} 9. O-O {[%emt 0:01:04]} O-O {
[%emt 0:00:47]} 10. Re1 {[%emt 0:03:23] [#]} a6 $146 {[%emt 0:01:16]} ({
Predecessor:} 10... e5 11. Bxf6 Bxf6 12. Nxd5 Be6 13. c4 Be7 14. a3 a5 15. Qb3
a4 16. Qxb7 Bxd5 17. cxd5 {1-0 (40) Sevian,S (2660)-Horvath,D (2449) Chess.com
INT 2020}) 11. a4 {[%emt 0:01:31]} Bd7 {[%emt 0:00:36]} 12. Bg3 {[%emt 0:00:37]
} Bb4 {[%emt 0:04:47]} (12... Nh5 {is interesting.} 13. Be5 Be8 14. Bd4 Bb4)
13. Re2 {[%emt 0:00:29]} Rc8 {[%emt 0:01:45]} 14. Na2 {[%emt 0:00:30]} Be7 {
[%emt 0:01:00]} 15. c3 {[%emt 0:04:55]} Nh5 {[%emt 0:01:59]} 16. Bc2 {[%emt 0:
00:00]} Nxg3 {[%emt 0:00:40]} 17. hxg3 {[%emt 0:00:10]} Qc7 {[%emt 0:03:37]}
18. Nc1 {[%emt 0:01:32]} Rfd8 {[%emt 0:00:57]} 19. Nd3 {[%emt 0:01:48]} e5 {
[%emt 0:01:20][%cal Ye6e5,Ye5e4]} 20. Nde1 {[%emt 0:02:05]} (20. e4 $17 dxe4
21. Rxe4) 20... Bg4 $19 {[%emt 0:02:02]} 21. Rd2 {[%emt 0:04:01]} e4 {[%emt 0:
02:17]} 22. Rxd5 {[%emt 0:00:17]} exf3 {[%emt 0:01:03]} 23. Qd3 {[%emt 0:00:09]
[#] Threatening mate with Qh7+.} g6 {[%emt 0:00:37]} 24. gxf3 {[%emt 0:00:28]}
Be6 {[%emt 0:01:29]} 25. Rxd8+ {[%emt 0:00:18]} Rxd8 {[%emt 0:00:00]} 26. Qf1 {
[%emt 0:00:47]} (26. Qe2 $142) 26... Rd2 {[%emt 0:02:39]} 27. Rd1 {[%emt 0:02:
47]} Qd7 {[%emt 0:00:28] Black is clearly winning.} 28. Rxd2 {[%emt 0:01:31]}
Qxd2 {[%emt 0:00:05]} 29. Kg2 {[%emt 0:01:54]} Ne5 {[%emt 0:00:00] Weighted
Error Value: White=0.26 (precise) /Black=0.06 (flawless)} 0-1

[Event "44th Chess Olympiad Open 2022"]
[Site "Chennai"]
[Date "2022.07.30"]
[Round "2.73"]
[White "Jones, Rupert"]
[Black "Yousuf M M Al Mutawa"]
[Result "0-1"]
[WhiteElo "1766"]
[BlackElo "2120"]
[Annotator "NA"]
[PlyCount "80"]
[EventDate "2022.??.??"]
[TimeControl "60"]

1. e4 {[%emt 0:00:04]} c6 {[%emt 0:00:05]} 2. Nf3 {[%emt 0:01:59]} d5 {[%emt 0:
00:00]} 3. exd5 {[%emt 0:01:21]} cxd5 {[%emt 0:00:09]} 4. Ne5 {[%emt 0:00:53]}
a6 {[%emt 0:01:33]} 5. d4 {[%emt 0:00:29]} Nc6 {[%emt 0:01:41]} 6. Be2 {
[%emt 0:05:59]} Bf5 {[%emt 0:00:37]} 7. c3 {[%emt 0:00:26]} e6 {[%emt 0:00:37]}
8. Bf4 {[%emt 0:02:16]} Nxe5 {[%emt 0:03:26]} 9. Bxe5 {[%emt 0:06:06]} Ne7 {
[%emt 0:01:31]} 10. Nd2 {[%emt 0:08:40]} Nc6 {[%emt 0:00:17]} 11. Bg3 {[%emt 0:
00:00]} Bd6 {[%emt 0:00:38]} 12. f4 {[%emt 0:01:37]} Qc7 {[%emt 0:02:28]} 13.
O-O {[%emt 0:00:31]} O-O {[%emt 0:00:53]} 14. Nb3 {[%emt 0:04:43]} Na5 {
[%emt 0:06:38]} 15. Nxa5 {[%emt 0:02:30]} Qxa5 {[%emt 0:00:09]} 16. Bd3 {
[%emt 0:08:18]} Rfe8 {[%emt 0:08:28]} 17. Qc2 {[%emt 0:05:11]} g6 {[%emt 0:00:
00]} 18. Qe2 {[%emt 0:07:50]} b5 {[%emt 0:01:24]} 19. a3 {[%emt 0:03:12]} Qb6 {
[%emt 0:01:33]} 20. Kh1 {[%emt 0:00:36]} Bxd3 {[%emt 0:01:27]} 21. Qxd3 {
[%emt 0:00:10]} a5 {[%emt 0:00:18]} 22. Be1 {[%emt 0:08:42]} b4 {[%emt 0:00:37]
} 23. Bd2 {[%emt 0:02:28]} bxa3 {[%emt 0:03:07]} 24. bxa3 {[%emt 0:02:53]} a4 {
[%emt 0:00:18]} 25. c4 {[%emt 0:11:43]} dxc4 {[%emt 0:01:07]} 26. Qxc4 {
[%emt 0:00:07]} Rec8 {[%emt 0:00:32]} 27. Qd3 {[%emt 0:00:43]} Qc6 {[%emt 0:00:
00]} 28. Rac1 {[%emt 0:04:41]} Qd5 {[%emt 0:01:03]} 29. Bb4 {[%emt 0:06:54]}
Rxc1 {[%emt 0:03:04]} 30. Rxc1 {[%emt 0:00:05]} Bxf4 {[%emt 0:00:25]} 31. Rc5 {
[%emt 0:01:47]} Qb3 {[%emt 0:03:34]} 32. Qf1 {[%emt 0:00:39]} Bd6 {[%emt 0:00:
00]} 33. Rc3 {[%emt 0:00:19]} Qd5 {[%emt 0:00:18]} 34. Bc5 {[%emt 0:01:13]} Rc8
{[%emt 0:04:17]} 35. Rf3 {[%emt 0:01:06]} Bxc5 {[%emt 0:00:50]} 36. dxc5 {
[%emt 0:00:09]} f5 {[%emt 0:00:22]} 37. Rf4 {[%emt 0:00:52]} Rxc5 {[%emt 0:00:
00]} 38. Rxa4 {[%emt 0:00:19]} Qd2 {[%emt 0:01:05]} 39. Ra8+ {[%emt 0:00:29]}
Kg7 {[%emt 0:00:19]} 40. Ra7+ {[%emt 0:01:07]} Kh6 {[%emt 0:01:16]} 0-1

[Event "44th Chess Olympiad Open 2022"]
[Site "Chennai"]
[Date "2022.07.30"]
[Round "2.74"]
[White "Beukes, Dante M"]
[Black "Koumba, Mounguen Jose Evrar"]
[Result "1-0"]
[WhiteElo "2234"]
[BlackElo "1942"]
[Annotator "RC"]
[PlyCount "71"]
[EventDate "2022.??.??"]
[TimeControl "60"]

1. e4 {[%emt 0:00:10]} c5 {[%emt 0:00:05]} 2. Nf3 {[%emt 0:00:03]} d6 {[%emt 0:
00:00]} 3. d4 {[%emt 0:00:05]} cxd4 {[%emt 0:00:08]} 4. Nxd4 {[%emt 0:00:11]}
Nf6 {[%emt 0:00:11]} 5. Nc3 {[%emt 0:00:04]} g6 {[%emt 0:00:45]} 6. Be3 {
[%emt 0:00:07]} Bg7 {[%emt 0:00:07]} 7. f3 {[%emt 0:00:04]} Nc6 {[%emt 0:00:13]
} 8. Qd2 {[%emt 0:00:35]} O-O {[%emt 0:00:08]} 9. O-O-O {[%emt 0:01:08]} d5 {
[%emt 0:03:56]} 10. exd5 {[%emt 0:02:03]} Nxd5 {[%emt 0:00:10]} 11. Nxc6 {
[%emt 0:00:09]} bxc6 {[%emt 0:00:06]} 12. Bd4 {[%emt 0:00:05]} Nxc3 {[%emt 0:
00:00]} 13. Qxc3 {[%emt 0:00:09]} Bxd4 {[%emt 0:00:16]} 14. Rxd4 {[%emt 0:00:
00]} Qb6 {[%emt 0:01:52]} 15. Bc4 {[%emt 0:01:49]} Rb8 {[%emt 0:02:13]} 16. h4
{[%emt 0:02:33]} c5 {[%emt 0:01:38]} 17. Re4 {[%emt 0:01:34]} e6 {[%emt 0:00:
00]} 18. h5 {[%emt 0:02:24]} g5 {[%emt 0:07:53]} 19. h6 {[%emt 0:06:32]} f6 {
[%emt 0:01:57]} 20. Rhe1 {[%emt 0:03:43]} Qc7 {[%emt 0:04:49]} 21. Bxe6+ {
[%emt 0:02:12]} Bxe6 {[%emt 0:00:08]} 22. Rxe6 {[%emt 0:00:05]} Qf4+ {[%emt 0:
00:00]} 23. Kb1 {[%emt 0:00:46]} Qh4 {[%emt 0:02:16]} 24. Qxc5 {[%emt 0:03:39]}
Qxh6 {[%emt 0:01:10]} 25. Qxa7 {[%emt 0:00:47]} Qg6 {[%emt 0:02:03]} 26. Re7 {
[%emt 0:04:39]} Rbc8 {[%emt 0:01:48]} 27. Rc7 {[%emt 0:01:17]} h5 {[%emt 0:00:
00]} 28. Ree7 {[%emt 0:03:33]} Rxc7 {[%emt 0:00:43]} 29. Qxc7 {[%emt 0:00:05]}
f5 {[%emt 0:02:10]} 30. Qc4+ {[%emt 0:02:55]} Kh8 {[%emt 0:00:53]} 31. Qd4+ {
[%emt 0:02:07]} Kg8 {[%emt 0:01:28]} 32. Qd5+ {[%emt 0:00:13]} Kh8 {[%emt 0:00:
00]} 33. Re6 {[%emt 0:00:46]} Rf6 {[%emt 0:06:44]} 34. Qd8+ {[%emt 0:00:26]}
Kg7 {[%emt 0:00:19]} 35. Re8 {[%emt 0:00:35]} Qf7 {[%emt 0:07:34]} 36. Re7 {
[%emt 0:00:10]} 1-0

[Event "44th Chess Olympiad Open 2022"]
[Site "Chennai"]
[Date "2022.07.30"]
[Round "2.74"]
[White "Bongo Akanga Ndjila, Barthelemy"]
[Black "Eichab, Charles"]
[Result "0-1"]
[WhiteElo "1803"]
[BlackElo "2048"]
[Annotator "NA"]
[PlyCount "98"]
[EventDate "2022.??.??"]
[TimeControl "60"]

1. d4 {[%emt 0:01:04]} Nf6 {[%emt 0:00:08]} 2. c4 {[%emt 0:00:05]} e6 {[%emt 0:
00:00]} 3. Nc3 {[%emt 0:00:07]} Bb4 {[%emt 0:00:18]} 4. f3 {[%emt 0:00:05]} d5
{[%emt 0:06:39]} 5. a3 {[%emt 0:00:34]} Be7 {[%emt 0:03:23]} 6. e4 {[%emt 0:00:
00]} dxc4 {[%emt 0:11:54]} 7. Bxc4 {[%emt 0:00:30]} c5 {[%emt 0:01:26]} 8. d5 {
[%emt 0:08:41]} O-O {[%emt 0:07:24]} 9. Nge2 {[%emt 0:00:26]} exd5 {[%emt 0:00:
00]} 10. exd5 {[%emt 0:03:12]} Bf5 {[%emt 0:01:13]} 11. Ng3 {[%emt 0:01:33]}
Bg6 {[%emt 0:09:39]} 12. Nge4 {[%emt 0:01:50]} Nxe4 {[%emt 0:00:51]} 13. fxe4 {
[%emt 0:01:00]} Bf6 {[%emt 0:06:08]} 14. O-O {[%emt 0:03:46]} Bd4+ {[%emt 0:00:
00]} 15. Kh1 {[%emt 0:00:14]} Bxc3 {[%emt 0:00:17]} 16. bxc3 {[%emt 0:00:10]}
Bxe4 {[%emt 0:00:47]} 17. Ra2 {[%emt 0:00:26]} b5 {[%emt 0:07:09]} 18. Re2 {
[%emt 0:01:30]} Bg6 {[%emt 0:03:30]} 19. Bxb5 {[%emt 0:00:10]} Bh5 {[%emt 0:00:
00]} 20. Qd2 {[%emt 0:01:25]} Bxe2 {[%emt 0:00:48]} 21. Bxe2 {[%emt 0:00:10]}
Nd7 {[%emt 0:00:50]} 22. c4 {[%emt 0:00:13]} Rb8 {[%emt 0:01:06]} 23. Bb2 {
[%emt 0:01:39]} Qb6 {[%emt 0:00:21]} 24. Ba1 {[%emt 0:02:12]} Qd6 {[%emt 0:00:
00]} 25. Qg5 {[%emt 0:02:06]} f6 {[%emt 0:00:20]} 26. Qf5 {[%emt 0:02:21]} Ne5
{[%emt 0:01:09]} 27. Qf4 {[%emt 0:01:31]} Rb6 {[%emt 0:03:22]} 28. g4 {[%emt 0:
00:00]} h6 {[%emt 0:05:23]} 29. h4 {[%emt 0:00:11]} Ng6 {[%emt 0:02:35]} 30.
Qf2 {[%emt 0:01:58]} Rb3 {[%emt 0:03:32]} 31. Kg2 {[%emt 0:01:12]} Re8 {
[%emt 0:01:39]} 32. g5 {[%emt 0:02:56]} Rxe2 {[%emt 0:01:34]} 33. Qxe2 {
[%emt 0:00:11]} Qg3+ {[%emt 0:00:13]} 34. Kh1 {[%emt 0:01:10]} Qxh4+ {[%emt 0:
00:00]} 35. Kg1 {[%emt 0:02:26]} Rg3+ {[%emt 0:01:20]} 36. Kf2 {[%emt 0:00:14]}
Rxa3+ {[%emt 0:00:37]} 37. Kg1 {[%emt 0:01:28]} Rg3+ {[%emt 0:01:04]} 38. Kf2 {
[%emt 0:00:12]} Rxg5+ {[%emt 0:00:30]} 39. Ke3 {[%emt 0:01:50]} Ne5 {[%emt 0:
00:00]} 40. Rf4 {[%emt 0:03:57]} Rg3+ {[%emt 0:01:50]} 41. Ke4 {[%emt 0:30:06]}
f5+ {[%emt 0:31:33]} 42. Kxf5 {[%emt 0:00:17]} Qf6+ {[%emt 0:00:13]} 43. Ke4 {
[%emt 0:00:28]} Qg6+ {[%emt 0:00:54]} 44. Rf5 {[%emt 0:05:33]} Rg4+ {[%emt 0:
00:00]} 45. Qxg4 {[%emt 0:04:21]} Nxg4 {[%emt 0:00:00]} 46. Kf4 {[%emt 0:00:00]
} Ne3 {[%emt 0:00:00]} 47. Re5 {[%emt 0:00:00]} Nxc4 {[%emt 0:00:00]} 48. Re6 {
[%emt 0:00:39]} Qg5+ {[%emt 0:00:38]} 49. Ke4 {[%emt 0:00:00]} Nd2+ {[%emt 0:
00:00]} 0-1

[Event "44th Chess Olympiad Open 2022"]
[Site "Chennai"]
[Date "2022.07.30"]
[Round "2.74"]
[White "Uapingene, Uatiavi Jossy"]
[Black "Bongo Ngombele, Tary"]
[Result "1-0"]
[WhiteElo "1798"]
[BlackElo "1688"]
[Annotator "NA RC"]
[PlyCount "73"]
[EventDate "2022.??.??"]
[TimeControl "60"]

1. d4 {[%emt 0:00:03]} d5 {[%emt 0:00:06]} 2. Bg5 {[%emt 0:00:05]} Nf6 {
[%emt 0:00:13]} 3. Bxf6 {[%emt 0:00:08]} exf6 {[%emt 0:00:25]} 4. e3 {[%emt 0:
00:00]} Be6 {[%emt 0:00:31]} 5. Ne2 {[%emt 0:00:24]} Qd6 {[%emt 0:00:25]} 6.
Nd2 {[%emt 0:05:10]} Nd7 {[%emt 0:03:22]} 7. g3 {[%emt 0:01:31]} f5 {[%emt 0:
00:00]} 8. Bg2 {[%emt 0:00:28]} Nf6 {[%emt 0:00:19]} 9. c4 {[%emt 0:04:41]} c6
{[%emt 0:07:35]} 10. c5 {[%emt 0:06:40]} Qc7 {[%emt 0:00:44]} 11. b4 {[%emt 0:
00:00]} a5 {[%emt 0:02:41]} 12. a3 {[%emt 0:00:53]} b6 {[%emt 0:02:23]} 13. O-O
{[%emt 0:00:38]} Be7 {[%emt 0:01:07]} 14. Qc2 {[%emt 0:06:12]} axb4 {[%emt 0:
00:00]} 15. axb4 {[%emt 0:00:10]} Kd7 {[%emt 0:01:02]} 16. Nf3 {[%emt 0:01:41]}
Rac8 {[%emt 0:05:01]} 17. Ra6 {[%emt 0:00:56]} bxc5 {[%emt 0:05:38]} 18. Ne5+ {
[%emt 0:00:51]} Ke8 {[%emt 0:00:53]} 19. Rxc6 {[%emt 0:00:07]} Qb7 {[%emt 0:00:
00]} 20. Rxc8+ {[%emt 0:00:31]} Qxc8 {[%emt 0:02:58]} 21. bxc5 {[%emt 0:00:09]}
Nd7 {[%emt 0:02:04]} 22. Qa4 {[%emt 0:02:40]} f6 {[%emt 0:09:25]} 23. Nc6 {
[%emt 0:01:07]} Kf7 {[%emt 0:05:02]} 24. Nf4 {[%emt 0:02:50]} Qb7 {[%emt 0:00:
00]} 25. Nxe7 {[%emt 0:05:45]} Kxe7 {[%emt 0:00:21]} 26. c6 {[%emt 0:00:04]}
Ra8 {[%emt 0:02:22]} 27. Qc2 {[%emt 0:01:18]} Rc8 {[%emt 0:02:23]} 28. Nxd5+ {
[%emt 0:04:04]} Ke8 {[%emt 0:03:36]} 29. Nf4 {[%emt 0:01:09]} Ke7 {[%emt 0:00:
00]} 30. Nxe6 {[%emt 0:04:34]} Kxe6 {[%emt 0:00:25]} 31. d5+ {[%emt 0:00:01]}
Ke7 {[%emt 0:01:07]} 32. Qxf5 {[%emt 0:00:07]} Qc7 {[%emt 0:00:28]} 33. Qe6+ {
[%emt 0:00:29]} Kd8 {[%emt 0:00:34]} 34. d6 {[%emt 0:00:15]} Nf8 {[%emt 0:00:
00]} 35. dxc7+ {[%emt 0:00:08]} Rxc7 {[%emt 0:00:34]} 36. Qd6+ {[%emt 0:00:02]}
Kc8 {[%emt 0:00:09]} 37. Qxf8# {[%emt 0:00:30]} 1-0